bitfinex-derivatives/quotes_BNBF0:USTF0_20250507
["timestamp","ask_amount","ask_price","bid_price","bid_amount"]
[1746619833510,0.32832096,609.16,606.03,3.38601666]
[1746619833711,0.28643626,607.88,606.03,3.38601666]
[1746619833911,0.30253305,609.15,606.03,3.38601666]
[1746619834312,0.32840722,609.0,606.03,3.38601666]
[1746619834912,0.30246471,608.99,606.03,3.38601666]
[1746619835111,0.32848273,608.86,606.03,3.38601666]
[1746619835909,0.30246471,608.85,606.03,3.38601666]
[1746619836113,0.32849892,608.83,606.03,3.38601666]
[1746619836615,0.30246471,608.82,606.03,3.38601666]
[1746619837810,0.32851511,608.8,606.03,3.38601666]
[1746619838212,0.30246471,608.79,606.03,3.38601666]
[1746619838416,0.3285313,608.77,606.03,3.38601666]
[1746619838912,0.30246471,608.76,606.03,3.38601666]
[1746619839113,0.32854749,608.74,606.03,3.38601666]
[1746619839908,1.28749352,608.73,606.03,3.38601666]
[1746619840113,0.98502881,608.72,606.03,3.38601666]
[1746619840413,0.32856908,608.7,606.03,3.38601666]
[1746619840613,0.30246471,608.69,606.03,3.38601666]
[1746619840913,0.32858527,608.67,606.03,3.38601666]
[1746619841114,0.98502881,608.66,606.03,3.38601666]
[1746619841315,0.32859607,608.65,606.03,3.38601666]
[1746619841515,0.30246471,608.64,606.03,3.38601666]
[1746619841712,0.32860687,608.63,606.03,3.38601666]
[1746619842016,1.31363568,608.63,606.03,3.38601666]
[1746619842316,0.98502881,608.62,606.03,3.38601666]
[1746619842516,0.32861766,608.61,606.03,3.38601666]
[1746619842916,1.28749352,608.6,606.03,3.38601666]
[1746619843217,0.63109317,608.59,606.03,3.38601666]
[1746619843518,1.61612738,608.58,606.03,3.38601666]
[1746619843714,0.32863926,608.57,606.03,3.38601666]
[1746619843912,1.28749352,608.56,606.03,3.38601666]
[1746619844112,0.32865006,608.55,606.03,3.38601666]
[1746619844316,0.98502881,608.54,606.03,3.38601666]
[1746619844617,0.63112558,608.53,606.03,3.38601666]
[1746619844814,1.31369508,608.52,606.03,3.38601666]
[1746619845017,1.31370048,608.51,606.03,3.38601666]
[1746619845218,0.32867707,608.5,606.03,3.38601666]
[1746619845411,1.31370588,608.5,606.03,3.38601666]
[1746619845913,1.28741791,608.49,606.03,3.38601666]
[1746619846214,0.98502881,608.48,606.03,3.38601666]
[1746619846517,1.28741791,608.48,606.03,3.38601666]
[1746619846718,1.28741791,608.47,606.03,3.38601666]
[1746619847013,0.3023891,608.46,606.03,3.38601666]
[1746619847420,0.98502881,608.45,606.03,3.38601666]
[1746619847717,0.3023891,608.44,606.03,3.38601666]
[1746619847917,0.98502881,608.43,606.03,3.38601666]
[1746619848319,0.98502881,608.42,606.03,3.38601666]
[1746619848517,1.28741791,608.42,606.03,3.38601666]
[1746619848818,0.98502881,608.41,606.03,3.38601666]
[1746619849016,1.28741791,608.41,606.03,3.38601666]
[1746619849217,1.28741791,608.4,606.03,3.38601666]
[1746619849518,1.28741791,608.39,606.03,3.38601666]
[1746619849920,0.3023891,608.38,606.03,3.38601666]
[1746619850116,0.98502881,608.37,606.03,3.38601666]
[1746619850620,0.3023891,608.36,606.03,3.38601666]
[1746619850820,0.98502881,608.35,606.03,3.38601666]
[1746619851221,0.3023891,608.34,606.03,3.38601666]
[1746619851422,0.98502881,608.33,606.03,3.38601666]
[1746619851623,0.98502881,608.32,606.03,3.38601666]
[1746619852019,0.3023891,608.31,606.03,3.38601666]
[1746619852321,0.98502881,608.3,606.03,3.38601666]
[1746619852622,0.3023891,608.29,606.03,3.38601666]
[1746619852823,0.98502881,608.28,606.03,3.38601666]
[1746619853218,0.98502881,608.27,606.03,3.38601666]
[1746619853423,1.28741791,608.27,606.03,3.38601666]
[1746619853723,0.98502881,608.26,606.03,3.38601666]
[1746619854122,0.98502881,608.25,606.03,3.38601666]
[1746619854518,0.98502881,608.24,606.03,3.38601666]
[1746619854723,0.98502881,608.23,606.03,3.38601666]
[1746619854923,0.98502881,608.22,606.03,3.38601666]
[1746619855923,0.98502881,608.21,606.03,3.38601666]
[1746619856421,0.98502881,608.2,606.03,3.38601666]
[1746619857027,0.98502881,608.19,606.03,3.38601666]
[1746619857525,0.98502881,608.18,606.03,3.38601666]
[1746619858121,0.98502881,608.17,606.03,3.38601666]
[1746619858522,0.98502881,608.16,606.03,3.38601666]
[1746619858726,1.27153699,608.16,606.03,3.38601666]
[1746619859122,0.98502881,608.15,606.03,3.38601666]
[1746619859727,0.98502881,608.14,606.03,3.38601666]
[1746619860224,0.98502881,608.13,606.03,3.38601666]
[1746619860626,0.98502881,608.12,606.03,3.38601666]
[1746619860826,0.98502881,608.11,606.03,3.38601666]
[1746619861126,0.98502881,608.1,606.03,3.38601666]
[1746619861322,0.98502881,608.09,606.03,3.38601666]
[1746619861520,0.98502881,608.08,606.03,3.38601666]
[1746619862027,0.98502881,608.07,606.03,3.38601666]
[1746619862627,0.98502881,608.06,606.03,3.38601666]
[1746619862829,0.98502881,608.05,606.03,3.38601666]
[1746619863529,0.98502881,608.04,606.03,3.38601666]
[1746619864027,0.98502881,608.03,606.03,3.38601666]
[1746619864524,0.98502881,608.02,606.03,3.38601666]
[1746619864929,0.98502881,608.01,606.03,3.38601666]
[1746619865328,0.98502881,608.0,606.03,3.38601666]
[1746619866030,0.98502881,607.99,606.03,3.38601666]
[1746619866830,0.98502881,607.98,606.03,3.38601666]
[1746619867327,0.98502881,607.97,606.03,3.38601666]
[1746619867931,0.28654357,608.0,606.03,3.38601666]
[1746619868132,0.9815693,607.96,606.03,3.38601666]
[1746619868526,0.9815693,607.95,606.03,3.38601666]
[1746619868833,0.9815693,607.94,606.03,3.38601666]
[1746619869132,0.9815693,607.93,606.03,3.38601666]
[1746619869635,0.9815693,607.92,606.03,3.38601666]
[1746619870228,0.9815693,607.91,606.03,3.38601666]
[1746619870735,0.9815693,607.9,606.03,3.38601666]
[1746619872835,0.9815693,607.89,606.03,3.38601666]
[1746619873431,0.9815693,607.88,606.03,3.38601666]
[1746619873731,0.9815693,607.87,606.03,3.38601666]
[1746619874436,0.9815693,607.86,606.03,3.38601666]
[1746619874936,0.9815693,607.85,606.03,3.38601666]
[1746619875837,0.9815693,607.84,606.03,3.38601666]
[1746619876035,0.9815693,607.83,606.03,3.38601666]
[1746619876237,0.9815693,607.82,606.03,3.38601666]
[1746619877137,0.9815693,607.81,606.03,3.38601666]
[1746619877440,0.28653059,608.14,606.03,3.38601666]
[1746619878138,0.9815693,608.13,606.03,3.38601666]
[1746619878339,0.9815693,608.12,606.03,3.38601666]
[1746619878940,0.9815693,608.11,606.03,3.38601666]
[1746619879139,0.9815693,608.1,606.03,3.38601666]
[1746619879845,0.9815693,608.1,606.04,1.05355435]
[1746619880137,0.9815693,608.09,606.04,1.05355435]
[1746619880342,0.9815693,608.08,606.14,0.32995677]
[1746619880737,0.9815693,608.07,606.14,0.32995677]
[1746619881138,0.9815693,608.06,606.14,0.32995677]
[1746619881744,0.9815693,608.06,606.17,1.05355435]
[1746619881936,0.9815693,608.05,606.19,0.32992956]
[1746619882342,0.98590405,608.04,606.19,0.32992956]
[1746619882940,0.98590405,608.03,606.19,0.32992956]
[1746619883142,0.98590405,608.03,606.2,0.785]
[1746619883341,0.98590405,608.02,606.22,0.32991323]
[1746619883643,0.98590405,608.01,606.22,0.32991323]
[1746619883842,0.98590405,608.01,606.23,0.604]
[1746619884039,0.98590405,608.0,606.23,0.604]
[1746619884343,0.98590405,608.0,606.24,0.895]
[1746619884539,0.98590405,607.99,606.24,0.895]
[1746619884943,0.98590405,607.98,606.24,0.895]
[1746619885147,0.98590405,607.98,606.26,0.32989146]
[1746619885349,0.98590405,607.97,606.26,0.32989146]
[1746619885651,0.98590405,607.96,606.26,0.32989146]
[1746619886050,0.98590405,607.95,606.26,0.32989146]
[1746619886351,0.98590405,607.94,606.26,0.32989146]
[1746619887052,0.98590405,608.29,606.26,0.32989146]
[1746619887855,0.98590405,608.28,606.26,0.32989146]
[1746619888253,0.98590405,608.27,606.26,0.32989146]
[1746619888646,0.98590405,608.26,606.26,0.32989146]
[1746619889145,0.98590405,608.25,606.26,0.32989146]
[1746619889454,0.98590405,608.24,606.26,0.32989146]
[1746619889954,0.98590405,608.23,606.26,0.32989146]
[1746619890654,0.98590405,608.22,606.26,0.32989146]
[1746619890857,0.98590405,608.21,606.26,0.32989146]
[1746619891456,0.98590405,608.2,606.26,0.32989146]
[1746619892055,0.98590405,608.19,606.26,0.32989146]
[1746619892551,0.98590405,608.18,606.26,0.32989146]
[1746619893055,0.98590405,608.17,606.26,0.32989146]
[1746619893556,0.98590405,608.16,606.26,0.32989146]
[1746619893949,0.98590405,608.15,606.26,0.32989146]
[1746619894456,0.98590405,608.14,606.26,0.32989146]
[1746619895055,0.98590405,608.13,606.26,0.32989146]
[1746619895455,0.98590405,608.12,606.26,0.32989146]
[1746619896653,0.98590405,608.11,606.26,0.32989146]
[1746619896858,0.98590405,608.1,606.26,0.32989146]
[1746619897360,0.98590405,608.09,606.26,0.32989146]
[1746619898260,0.98590405,608.32,606.26,0.32989146]
[1746619898456,0.98590405,608.31,606.26,0.32989146]
[1746619898961,0.98590405,608.3,606.26,0.32989146]
[1746619899761,0.98590405,608.29,606.26,0.32989146]
[1746619900063,0.98590405,608.28,606.26,0.32989146]
[1746619900457,0.98590405,608.27,606.26,0.32989146]
[1746619900663,0.98590405,608.27,606.53,1.05355435]
[1746619901162,0.98590405,608.26,606.55,0.32973374]
[1746619901364,0.98590405,608.25,606.55,0.32973374]
[1746619901962,0.98590405,608.24,606.55,0.32973374]
[1746619902664,0.98590405,608.23,606.55,0.32973374]
[1746619903060,0.98590405,608.61,606.55,0.32973374]
[1746619903259,0.98590405,608.6,606.55,0.32973374]
[1746619903966,0.98590405,608.59,606.55,0.32973374]
[1746619904365,0.98590405,608.58,606.55,0.32973374]
[1746619904762,0.98590405,608.58,606.55,0.89773374]
[1746619904969,0.98590405,608.57,606.55,0.89773374]
[1746619905469,0.98590405,608.56,606.55,0.89773374]
[1746619905767,0.98590405,608.55,606.55,0.89773374]
[1746619905968,0.98590405,608.54,606.55,0.89773374]
[1746619906367,0.98590405,608.53,606.55,0.89773374]
[1746619906963,0.98590405,608.9,606.55,0.89773374]
[1746619907365,0.30199403,608.89,606.55,0.89773374]
[1746619907670,0.98590405,608.88,606.55,0.89773374]
[1746619908471,0.98590405,608.87,606.55,0.89773374]
[1746619908971,0.98590405,608.86,606.55,0.89773374]
[1746619909871,0.98590405,608.85,606.55,1.81173374]
[1746619910172,0.98590405,608.84,606.55,1.81173374]
[1746619910771,0.98590405,608.83,606.55,1.81173374]
[1746619911273,0.98590405,608.82,606.55,1.81173374]
[1746619911572,0.98590405,608.81,606.55,1.81173374]
[1746619912275,0.98590405,608.8,606.55,1.81173374]
[1746619912773,0.98590405,608.79,606.55,1.81173374]
[1746619913467,0.98590405,608.78,606.55,1.81173374]
[1746619913668,0.98590405,608.77,606.55,1.81173374]
[1746619913868,0.30200275,608.76,606.55,1.81173374]
[1746619914370,0.98590405,608.75,606.55,1.81173374]
[1746619914775,0.98590405,608.74,606.55,2.40873374]
[1746619914974,1.2879068,608.74,606.55,2.40873374]
[1746619915174,1.2879068,608.73,606.55,2.40873374]
[1746619915474,0.30200275,608.72,606.55,2.40873374]
[1746619915681,0.98590405,608.71,606.55,2.40873374]
[1746619916173,0.98590405,608.7,606.55,2.40873374]
[1746619916576,0.98590405,608.69,606.55,2.40873374]
[1746619916977,0.98590405,608.68,606.55,2.40873374]
[1746619917278,0.98590405,608.67,606.55,2.40873374]
[1746619917774,1.28800433,608.66,606.55,2.40873374]
[1746619918177,1.28800433,608.65,606.55,2.40873374]
[1746619918478,1.28800433,608.64,606.55,2.40873374]
[1746619918676,0.98590405,608.63,606.55,2.40873374]
[1746619918881,1.28800433,608.63,606.55,2.40873374]
[1746619919082,0.98590405,608.63,606.55,2.40873374]
[1746619919381,1.28801983,608.62,606.55,2.40873374]
[1746619919880,1.28801983,608.61,606.55,2.40873374]
[1746619920380,0.30211578,608.6,606.55,2.40873374]
[1746619920580,0.98590405,608.59,606.55,2.40873374]
[1746619920880,1.28803102,608.58,606.55,2.40873374]
[1746619921079,0.30212697,608.57,606.55,2.40873374]
[1746619921574,0.97604723,608.56,606.55,2.40873374]
[1746619922179,1.27817593,608.55,606.55,2.40873374]
[1746619922380,0.3021287,608.54,606.55,2.40873374]
[1746619922680,0.97604723,608.53,606.55,2.40873374]
[1746619923889,0.97604723,608.52,606.55,2.40873374]
[1746619924275,0.97604723,608.51,606.55,2.40873374]
[1746619924782,0.97604723,608.5,606.55,2.40873374]
[1746619925281,0.97604723,608.5,606.55,3.24473374]
[1746619925475,0.97604723,608.49,606.55,3.24473374]
[1746619925676,0.97604723,608.48,606.55,3.24473374]
[1746619926276,0.97604723,608.47,606.55,3.24473374]
[1746619926776,0.97604723,608.46,606.55,3.24473374]
[1746619927175,0.97604723,608.45,606.55,3.24473374]
[1746619927875,0.28625601,608.73,606.55,3.24473374]
[1746619928082,1.6653113,609.87,606.55,3.24473374]
[1746619928379,0.28607246,608.8,606.55,3.24473374]
[1746619928680,0.97604723,609.86,606.55,3.24473374]
[1746619928881,0.68926407,609.87,606.55,3.24473374]
[1746619928882,0.32800865,609.74,606.55,3.24473374]
[1746619929176,0.28607364,608.8,606.55,3.24473374]
[1746619929381,0.97604723,608.79,606.55,3.24473374]
[1746619929881,0.97604723,608.78,606.55,3.24473374]
[1746619930280,0.97604723,608.77,606.55,3.24473374]
[1746619931177,0.97604723,608.76,606.55,3.24473374]
[1746619931680,0.97604723,608.75,606.55,3.24473374]
[1746619932082,0.97604723,608.74,606.55,3.24473374]
[1746619933584,0.97604723,609.73,606.55,3.24473374]
[1746619933884,0.28617009,608.98,606.55,3.24473374]
[1746619934183,0.97604723,608.97,606.55,3.24473374]
[1746619934583,0.97604723,608.96,606.55,3.24473374]
[1746619935484,0.97604723,608.95,606.55,3.24473374]
[1746619936180,0.97604723,608.94,606.55,3.24473374]
[1746619936685,0.97604723,608.93,606.55,3.24473374]
[1746619937480,0.97604723,608.92,606.55,3.24473374]
[1746619937885,0.97604723,608.91,606.55,3.24473374]
[1746619938587,0.97604723,608.9,606.55,3.24473374]
[1746619939187,0.97604723,608.89,606.55,3.24473374]
[1746619939487,0.97604723,608.88,606.55,3.24473374]
[1746619940186,0.97604723,608.87,606.55,3.24473374]
[1746619940588,0.97604723,608.86,606.55,3.24473374]
[1746619941088,0.97604723,608.85,606.55,3.24473374]
[1746619941385,0.97604723,608.84,606.55,3.24473374]
[1746619941691,0.97604723,608.83,606.55,3.24473374]
[1746619941989,0.97604723,608.82,606.55,3.24473374]
[1746619942491,0.97604723,608.81,606.55,3.24473374]
[1746619942986,1.27808093,608.8,606.55,3.24473374]
[1746619943290,0.97604723,608.8,606.55,3.24473374]
[1746619943490,0.97604723,608.79,606.55,3.24473374]
[1746619943891,0.97604723,608.78,606.55,3.24473374]
[1746619944292,0.97604723,608.77,606.78,1.05355435]
[1746619944489,0.97604723,608.77,606.8,0.32959789]
[1746619944686,0.97604723,608.76,606.8,0.32959789]
[1746619944985,0.97604723,608.75,606.8,0.32959789]
[1746619945390,0.97604723,608.74,606.8,0.32959789]
[1746619945990,0.97604723,608.73,606.8,0.32959789]
[1746619946392,0.97604723,608.72,606.8,0.32959789]
[1746619946687,0.97604723,608.71,606.8,0.32959789]
[1746619946894,0.97604723,608.7,606.8,1.15659789]
[1746619947288,0.97604723,608.69,606.8,1.15659789]
[1746619947688,0.97604723,608.68,606.8,2.38559789]
[1746619947991,0.97604723,608.67,606.8,2.38559789]
[1746619948692,0.97604723,608.66,606.8,2.38559789]
[1746619948992,0.97604723,608.65,606.8,2.38559789]
[1746619949693,0.97604723,608.64,606.8,2.38559789]
[1746619950094,0.97604723,608.63,606.8,2.38559789]
[1746619950592,0.97604723,608.62,606.8,2.38559789]
[1746619951092,0.97604723,608.61,606.8,2.38559789]
[1746619951493,0.97604723,608.6,606.8,2.38559789]
[1746619951994,0.97604723,608.59,606.8,2.38559789]
[1746619952194,0.97604723,608.58,606.8,2.38559789]
[1746619952589,0.97604723,608.57,606.8,2.38559789]
[1746619953395,0.97604723,608.56,606.8,2.38559789]
[1746619953893,0.97604723,608.55,606.8,2.38559789]
[1746619954296,0.97604723,608.54,606.8,2.38559789]
[1746619954697,0.97604723,608.53,606.8,2.38559789]
[1746619955396,0.97604723,608.52,606.8,2.38559789]
[1746619955696,0.97604723,608.51,606.8,2.38559789]
[1746619956196,0.97604723,608.5,606.8,2.38559789]
[1746619956896,0.97604723,608.49,606.8,2.38559789]
[1746619957497,0.97604723,608.48,606.8,2.38559789]
[1746619957896,0.97604723,608.47,606.8,2.38559789]
[1746619958394,0.97604723,608.46,606.8,2.38559789]
[1746619958993,0.97604723,608.45,606.8,2.38559789]
[1746619959396,0.97604723,608.44,606.8,2.38559789]
[1746619959792,0.97604723,608.43,606.8,2.38559789]
[1746619960397,0.97604723,608.42,606.8,2.38559789]
[1746619960898,0.97604723,608.41,606.8,2.38559789]
[1746619961198,0.97604723,608.4,606.8,2.38559789]
[1746619961698,0.97604723,608.39,606.8,2.38559789]
[1746619962195,0.97604723,608.39,606.91,1.05355435]
[1746619962398,0.97604723,608.38,606.93,0.32952729]
[1746619962894,0.97604723,608.37,606.93,1.05752729]
[1746619963199,0.97604723,608.36,606.93,1.05752729]
[1746619963592,0.97604723,608.35,606.93,1.05752729]
[1746619964000,0.97604723,608.34,606.93,1.05752729]
[1746619964599,0.28618892,608.9,606.93,1.05752729]
[1746619964600,0.97604723,608.33,606.93,1.05752729]
[1746619964901,0.97604723,608.32,607.17,1.05355435]
[1746619965200,0.97604723,608.32,607.19,0.32938618]
[1746619965501,0.97604723,608.31,607.19,0.32938618]
[1746619965896,0.28616538,608.9,607.19,0.32938618]
[1746619966099,0.30204061,608.89,607.19,0.32938618]
[1746619966699,0.98602121,608.88,607.19,0.32938618]
[1746619966899,0.98602121,608.87,607.19,0.32938618]
[1746619967100,1.28806182,608.86,607.19,0.32938618]
[1746619967300,1.28806182,608.86,607.2,0.772]
[1746619967505,0.30204061,608.85,607.22,0.32936991]
[1746619967908,0.98602121,608.84,607.22,0.32936991]
[1746619968107,0.98602121,608.83,607.22,0.32936991]
[1746619968407,0.98602121,608.82,607.22,0.32936991]
[1746619968909,0.98602121,608.81,607.22,0.32936991]
[1746619969207,0.98602121,608.8,607.22,0.32936991]
[1746619970208,0.98602121,608.79,607.22,0.32936991]
[1746619970905,0.98602121,608.78,607.22,0.32936991]
[1746619971207,0.98602121,608.77,607.22,0.32936991]
[1746619971610,0.98602121,608.76,607.22,0.32936991]
[1746619972005,0.98602121,608.75,607.22,0.32936991]
[1746619972608,0.28610186,608.9,607.22,0.32936991]
[1746619972609,0.98602121,608.74,607.22,0.32936991]
[1746619973110,0.98602121,608.73,607.22,0.32936991]
[1746619973614,0.28610186,608.9,607.22,0.32936991]
[1746619974410,1.25508193,609.81,607.22,0.32936991]
[1746619974608,0.30204115,609.73,607.23,0.859]
[1746619974806,0.28599488,608.9,607.23,0.859]
[1746619975111,1.25508193,609.81,607.23,0.859]
[1746619975411,0.30204186,609.73,607.23,0.859]
[1746619975711,0.30204186,609.72,607.23,0.859]
[1746619976011,0.30204186,609.71,607.23,0.859]
[1746619976212,0.58804027,609.71,607.23,0.859]
[1746619976410,0.28599841,609.71,607.23,0.859]
[1746619976611,0.30204186,609.7,607.23,0.859]
[1746619977715,0.28600193,609.69,607.23,0.859]
[1746619978115,0.30204186,609.68,607.23,0.859]
[1746619980715,0.28602074,609.67,607.23,0.859]
[1746619980915,0.30204186,609.66,607.23,0.859]
[1746619982717,0.30204186,609.65,607.23,0.859]
[1746619983019,0.30204186,609.64,607.23,0.859]
[1746619983220,0.30204186,609.63,607.23,0.859]
[1746619983418,0.30204186,609.62,607.23,0.859]
[1746619983717,0.98632362,609.61,607.23,0.859]
[1746619983918,0.30204186,609.6,607.23,0.859]
[1746619984112,0.98632362,609.59,607.23,0.859]
[1746619984316,0.30204186,609.58,607.23,0.859]
[1746619984819,0.98632362,609.57,607.23,0.859]
[1746619985019,0.30204186,609.56,607.23,0.859]
[1746619985320,0.98632362,609.55,607.23,0.859]
[1746619985519,0.30204186,609.54,607.23,0.859]
[1746619985720,1.28836548,609.54,607.23,0.859]
[1746619986019,1.28836548,609.53,607.23,0.859]
[1746619986218,0.30204186,609.52,607.23,0.859]
[1746619986416,0.98632362,609.51,607.23,0.859]
[1746619986619,0.30204186,609.5,607.23,0.859]
[1746619986919,0.58808376,609.5,607.23,0.859]
[1746619987119,1.28836548,609.49,607.23,0.859]
[1746619987416,0.30204186,609.48,607.34,0.32930483]
[1746619987621,0.98632362,609.47,607.34,0.32930483]
[1746619988022,1.28836548,609.46,607.34,0.32930483]
[1746619988320,1.28836548,609.45,607.34,0.32930483]
[1746619988517,0.3281755,609.43,607.34,0.32930483]
[1746619988716,0.30204186,609.42,607.34,0.32930483]
[1746619989017,0.32818627,609.41,607.34,0.32930483]
[1746619989221,0.30204186,609.4,607.34,0.32930483]
[1746619989416,0.32819704,609.39,607.34,0.32930483]
[1746619989620,0.30204186,609.38,607.34,0.32930483]
[1746619989821,1.31453144,609.37,607.35,0.784]
[1746619990422,0.98632362,609.36,607.45,0.3292452]
[1746619990723,0.32821859,609.35,607.45,0.3292452]
[1746619990923,0.98632362,609.34,607.45,0.3292452]
[1746619991123,0.32822936,609.33,607.46,0.641]
[1746619991323,0.98632362,609.32,607.46,0.641]
[1746619991722,0.32824014,609.31,607.48,0.32922894]
[1746619991924,1.31456376,609.31,607.48,0.32922894]
[1746619992618,0.98632362,609.3,607.48,0.32922894]
[1746619992816,0.32825091,609.29,607.48,0.32922894]
[1746619993016,0.98632362,609.28,607.48,0.32922894]
[1746619993422,0.98632362,609.27,607.48,0.32922894]
[1746619994018,0.32826707,609.26,607.48,0.32922894]
[1746619995724,0.28605718,609.25,607.48,0.32922894]
[1746619996227,0.32827785,609.24,607.48,0.32922894]
[1746619996626,0.98632362,609.23,607.48,0.32922894]
[1746619997323,0.98632362,609.22,607.48,0.32922894]
[1746619997622,1.31461764,609.21,607.48,0.32922894]
[1746619997826,0.3282994,609.2,607.48,0.32922894]
[1746619998622,0.98632362,609.19,607.48,0.32922894]
[1746619998826,0.32831018,609.18,607.48,0.32922894]
[1746619999023,1.3146338,609.18,607.48,0.32922894]
[1746619999328,0.98632362,609.17,607.48,0.32922894]
[1746619999526,1.31463919,609.17,607.48,0.32922894]
[1746619999725,0.98632362,609.16,607.48,0.32922894]
[1746620000429,0.98632362,609.15,607.49,0.539]
[1746620000623,0.98632362,609.15,607.51,0.32921268]
[1746620000928,0.98632362,609.14,607.51,0.32921268]
[1746620001324,0.98632362,609.13,607.51,0.32921268]
[1746620001729,1.27239256,609.13,607.51,0.32921268]
[1746620002028,0.98632362,609.12,607.51,0.32921268]
[1746620002428,0.98632362,609.11,607.51,0.32921268]
[1746620002828,0.98632362,609.1,607.51,0.32921268]
[1746620003424,0.98632362,609.09,607.51,0.32921268]
[1746620003829,0.98632362,609.08,607.51,0.32921268]
[1746620004328,0.98632362,609.07,607.51,0.32921268]
[1746620004629,0.98632362,609.06,607.51,0.32921268]
[1746620005129,0.98632362,609.06,607.52,0.71]
[1746620005329,0.98632362,609.05,607.54,0.32919643]
[1746620005831,0.98632362,609.04,607.54,0.32919643]
[1746620006429,0.98632362,609.03,607.54,0.32919643]
[1746620006930,0.98632362,609.02,607.54,0.32919643]
[1746620007629,0.98632362,609.01,607.54,0.32919643]
[1746620007925,1.27241255,609.01,607.54,0.32919643]
[1746620008330,0.98632362,609.0,607.54,0.32919643]
[1746620009032,0.98632362,608.99,607.54,0.32919643]
[1746620009532,0.98632362,608.98,607.54,0.32919643]
[1746620010026,0.98632362,608.97,607.54,0.32919643]
[1746620010732,0.98632362,608.96,607.54,0.32919643]
[1746620010932,1.27241843,608.96,607.54,0.32919643]
[1746620011232,0.98632362,608.95,607.54,0.32919643]
[1746620011632,0.98632362,608.94,607.54,0.32919643]
[1746620012333,0.98632362,608.93,607.54,0.32919643]
[1746620013134,0.3021535,608.92,607.54,0.32919643]
[1746620013329,0.98632362,608.91,607.54,0.32919643]
[1746620013628,1.28847712,608.9,607.54,0.32919643]
[1746620013833,0.3021535,608.89,607.54,0.32919643]
[1746620014034,0.98632362,608.88,607.54,0.32919643]
[1746620014536,0.30215739,608.87,607.54,0.32919643]
[1746620014736,0.98632362,608.86,607.54,0.32919643]
[1746620015237,0.98632362,608.85,607.54,0.32919643]
[1746620015531,1.28848101,608.85,607.54,0.32919643]
[1746620015735,0.98632362,608.84,607.54,0.32919643]
[1746620015932,0.98632362,608.83,607.54,0.32919643]
[1746620016138,0.98632362,608.83,607.54,1.08619643]
[1746620016435,1.28848101,608.82,607.54,1.79819643]
[1746620016638,0.30215739,608.81,607.54,1.79819643]
[1746620017336,0.98632362,608.8,607.54,1.79819643]
[1746620017540,0.30215739,608.79,607.54,1.79819643]
[1746620017835,0.98632362,608.78,607.54,1.79819643]
[1746620018233,0.98632362,608.77,607.54,1.79819643]
[1746620018539,0.98632362,608.76,607.54,1.79819643]
[1746620019139,0.98632362,608.75,607.54,1.79819643]
[1746620019440,0.98632362,608.74,607.54,1.79819643]
[1746620019835,1.27244195,608.74,607.54,1.79819643]
[1746620020039,0.98632362,608.73,607.54,1.79819643]
[1746620020439,0.98632362,608.72,607.54,1.79819643]
[1746620020939,0.98632362,608.71,607.54,1.79819643]
[1746620021443,0.30216555,608.7,607.54,1.79819643]
[1746620021738,0.98632362,608.69,607.54,1.79819643]
[1746620022040,0.30216555,608.68,607.54,1.79819643]
[1746620022340,0.98632362,608.67,607.54,1.79819643]
[1746620022938,0.98632362,608.66,607.54,1.79819643]
[1746620023437,0.98632362,608.66,607.54,0.32919643]
[1746620023639,0.98632362,608.65,607.54,0.32919643]
[1746620023941,0.98632362,608.64,607.54,0.32919643]
[1746620024140,0.98632362,608.63,607.54,0.32919643]
[1746620024741,0.98632362,608.62,607.54,0.32919643]
[1746620025639,0.98632362,608.61,607.54,0.32919643]
[1746620025937,0.98632362,608.6,607.54,0.32919643]
[1746620026638,0.98632362,608.59,607.54,0.32919643]
[1746620027143,0.98632362,608.58,607.54,0.32919643]
[1746620027646,0.98632362,608.57,607.54,1.19719643]
[1746620027844,0.98632362,608.57,607.54,1.86319643]
[1746620028146,0.98632362,608.57,607.54,2.62419643]
[1746620028344,0.98632362,608.56,607.54,2.62419643]
[1746620028846,0.2861348,608.7,607.54,2.62419643]
[1746620028847,0.98632362,608.55,607.54,2.62419643]
[1746620029244,0.98632362,608.55,607.54,3.28319643]
[1746620029552,0.98632362,608.54,607.54,3.28319643]
[1746620030150,0.98632362,608.53,607.54,3.28319643]
[1746620030451,0.98632362,608.52,607.54,3.28319643]
[1746620030951,0.98632362,608.51,607.54,3.28319643]
[1746620031747,0.98632362,608.5,607.54,3.28319643]
[1746620032146,0.98632362,608.49,607.54,3.28319643]
[1746620032448,0.32833713,609.13,607.54,3.28319643]
[1746620032449,0.98632362,608.48,607.54,3.28319643]
[1746620033150,0.98632362,608.47,607.54,3.28319643]
[1746620033551,0.98632362,608.46,607.54,3.28319643]
[1746620034249,0.98632362,608.45,607.54,3.28319643]
[1746620034651,0.98632362,608.44,607.54,3.28319643]
[1746620035054,0.98632362,608.43,607.54,3.28319643]
[1746620035556,0.98632362,608.42,607.54,3.28319643]
[1746620036252,0.98632362,608.41,607.54,3.28319643]
[1746620036755,0.98632362,608.4,607.54,3.28319643]
[1746620037656,0.98632362,608.39,607.54,3.28319643]
[1746620038156,0.98632362,608.38,607.54,3.28319643]